[Event "Charlotte Fall IM-C 2023"]
[Site "Charlotte"]
[Date "2023.11.19"]
[Round "5.5"]
[White "Bhagat Kush"]
[Black "Martin Del Campo Cardenas, Roberto Abel"]
[Result "1-0"]
[ECO "E73"]
[WhiteElo "2209"]
[BlackElo "2212"]
[Annotator "RC"]
[PlyCount "115"]
[EventDate "2023.11.17"]
[EventType "tourn"]
[EventCountry "USA"]
[SourceTitle "playchess.com"]
[Source "ChessBase"]
[SourceQuality "1"]
[TimeControl "5400+30"]

1. d4 {[%emt 0:01:30]} Nf6 {[%emt 0:02:20]} 2. c4 {[%emt 0:01:00]} d6 {[%emt 0:00:31]} 3. Nc3 {[%emt 0:01:11]} g6 {[%emt 0:04:09]} 4. e4 {[%emt 0:00:30]} Bg7 {[%emt 0:02:50]} 5. Be2 {[%emt 0:00:44]} O-O {[%emt 0:00:06]} 6. Be3 {[%emt 0:01:14]} e5 {[%emt 0:06:29]} 7. d5 {[%emt 0:02:07]} Na6 {[%emt 0:01:06]} 8. g4 {[%emt 0:00:28]} Nc5 {[%emt 0:00:26]} 9. f3 {[%emt 0:01:00]} a5 {[%emt 0:00:31]} 10. h4 {[%emt 0:00:52]} c6 {[%emt 0:02:24]} 11. h5 {[%emt 0:01:53]} cxd5 {[%emt 0:01:02]} 12. cxd5 {[%emt 0:00:23]} Bd7 {[%emt 0:03:21]} 13. Qd2 {[%emt 0:12:23]} a4 {[%emt 0:00:31]} 14. Nh3 {[%emt 0:02:48]} Qa5 {[%emt 0:00:52]} 15. Nf2 {[%emt 0:03:24]} Rfc8 {[%emt 0:01:09]} 16. h6 {[%emt 0:10:04]} Bf8 {[%emt 0:03:08]} 17. O-O {[%emt 0:02:10]} b5 {[%emt 0:10:42]} 18. Rfc1 {[%emt 0:10:50]} Be7 {[%emt 0:13:32]} 19. Nd3 {[%emt 0:05:49]} Nxd3 {[%emt 0:04:57]} 20. Bxd3 {[%emt 0:03:19]} b4 {[%emt 0:06:11]} 21. Nd1 {[%emt 0:04:49]} Bd8 {[%emt 0:01:06]} 22. Kg2 {[%emt 0:02:32]} Kf8 {[%emt 0:06:37]} 23. Qe2 {[%emt 0:05:13]} Be8 {[%emt 0:02:05]} 24. f4 {[%emt 0:06:05]} Nd7 {[%emt 0:06:33]} 25. Bb5 {[%emt 0:02:33]} exf4 {[%emt 0:05:05]} 26. Bxd7 {[%emt 0:02:06]} Bxd7 {[%emt 0:02:38]} 27. Bxf4 {[%emt 0:00:01]} Qa6 {[%emt 0:00:17]} 28. Qf3 {[%emt 0:02:53]} Rxc1 {[%emt 0:01:24]} 29. Rxc1 {[%emt 0:00:14]} Rc8 {[%emt 0:00:17]} 30. Rxc8 {[%emt 0:01:10]} Bxc8 {[%emt 0:00:03]} 31. Nf2 {[%emt 0:01:34]} Be7 {[%emt 0:01:19]} 32. Qe3 {[%emt 0:01:13]} f6 {[%emt 0:02:36]} 33. Qd4 {[%emt 0:00:42]} Kf7 {[%emt 0:04:21]} 34. Qxb4 {[%emt 0:03:49]} g5 {[%emt 0:03:36]} 35. Bg3 {[%emt 0:01:01]} Kg6 {[%emt 0:00:31]} 36. Qc3 {[%emt 0:02:13]} Qb7 {[%emt 0:01:13]} 37. Qc6 {[%emt 0:02:36]} Kxh6 {[%emt 0:00:56]} 38. Qxb7 {[%emt 0:00:15]} Bxb7 {[%emt 0:00:02]} 39. Nd1 {[%emt 0:00:06]} Bc8 {[%emt 0:00:24]} 40. Kf3 {[%emt 0:00:34]} Kg6 {[%emt 0:00:09]} 41. Ne3 {[%emt 0:01:11]} h5 {[%emt 0:00:25]} 42. gxh5+ {[%emt 0:00:22]} Kxh5 {[%emt 0:00:03]} 43. Nf5 {[%emt 0:00:18]} Bf8 {[%emt 0:02:30]} 44. Bxd6 {[%emt 0:02:19]} Bxf5 {[%emt 0:00:17]} 45. Bxf8 {[%emt 0:00:01]} Bc8 {[%emt 0:00:14]} 46. e5 {[%emt 0:00:56]} f5 {[%emt 0:00:53]} 47. Ke3 {[%emt 0:00:29]} Kg6 {[%emt 0:00:32]} 48. e6 {[%emt 0:00:33]} Kf6 {[%emt 0:00:25]} 49. Bd6 {[%emt 0:00:21]} f4+ {[%emt 0:00:19]} 50. Ke4 {[%emt 0:00:45]} Bb7 {[%emt 0:00:11]} 51. b3 {[%emt 0:01:17]} axb3 {[%emt 0:00:04]} 52. axb3 {[%emt 0:00:03]} Ba6 {[%emt 0:02:18]} 53. b4 {[%emt 0:00:13]} Bb5 {[%emt 0:00:40]} 54. Kd4 {[%emt 0:00:02]} Be8 {[%emt 0:00:33]} 55. Kc5 {[%emt 0:00:07]} Kf5 {[%emt 0:00:14]} 56. b5 {[%emt 0:00:22]} g4 {[%emt 0:00:12]} 57. b6 {[%emt 0:00:06]} g3 {[%emt 0:00:09]} 58. Kb4 {[%emt 0:00:05]} 1-0

[Event "Charlotte Fall IM-C 2023"]
[Site "Charlotte"]
[Date "2023.11.20"]
[Round "6.1"]
[White "Vemparala, Nikash"]
[Black "Martin Del Campo Cardenas, Roberto Abel"]
[Result "0-1"]
[ECO "B56"]
[WhiteElo "2257"]
[BlackElo "2212"]
[Annotator "RC"]
[PlyCount "118"]
[EventDate "2023.11.17"]
[EventType "tourn"]
[EventCountry "USA"]
[SourceTitle "playchess.com"]
[Source "ChessBase"]
[SourceQuality "1"]
[TimeControl "5400+30"]

1. e4 {[%emt 0:00:36]} c5 {[%emt 0:00:21]} 2. Nf3 {[%emt 0:00:07]} d6 {[%emt 0:00:03]} 3. d4 {[%emt 0:00:05]} cxd4 {[%emt 0:00:03]} 4. Nxd4 {[%emt 0:00:21]} Nf6 {[%emt 0:00:05]} 5. Nc3 {[%emt 0:00:13]} e5 {[%emt 0:02:20]} 6. Nb3 {[%emt 0:10:22]} Be7 {[%emt 0:00:52]} 7. f3 {[%emt 0:01:36]} O-O {[%emt 0:00:56]} 8. Be3 {[%emt 0:01:50]} a5 {[%emt 0:02:03]} 9. Bb5 {[%emt 0:06:59]} Be6 {[%emt 0:04:09]} 10. Qd2 {[%emt 0:03:18]} d5 {[%emt 0:01:06]} 11. exd5 {[%emt 0:01:58]} Nxd5 {[%emt 0:00:20]} 12. Nxd5 {[%emt 0:01:25]} Qxd5 {[%emt 0:00:04]} 13. Qxd5 {[%emt 0:01:09]} Bxd5 {[%emt 0:00:04]} 14. O-O-O {[%emt 0:01:30]} Bc6 {[%emt 0:01:14]} 15. Bxc6 {[%emt 0:06:27]} Nxc6 {[%emt 0:00:05]} 16. a4 {[%emt 0:01:15]} f5 {[%emt 0:04:16]} 17. Rd7 {[%emt 0:04:29]} Rf7 {[%emt 0:00:52]} 18. Kb1 {[%emt 0:02:58]} Bf6 {[%emt 0:03:09]} 19. Rd5 {[%emt 0:10:35]} Bd8 {[%emt 0:02:04]} 20. c3 {[%emt 0:02:23]} Bc7 {[%emt 0:01:01]} 21. Rb5 {[%emt 0:14:50]} Rb8 {[%emt 0:06:41]} 22. Nc5 {[%emt 0:01:15]} Bd6 {[%emt 0:01:43]} 23. Rd1 {[%emt 0:03:22]} Bxc5 {[%emt 0:04:32]} 24. Rxc5 {[%emt 0:00:52]} f4 {[%emt 0:05:31]} 25. Bf2 {[%emt 0:00:37]} Re8 {[%emt 0:02:01]} 26. Rc4 {[%emt 0:02:42]} Rfe7 {[%emt 0:00:16]} 27. Re4 {[%emt 0:01:07]} Re6 {[%emt 0:06:39]} 28. Bb6 {[%emt 0:05:12]} Rh6 {[%emt 0:01:55]} 29. h3 {[%emt 0:00:01]} Rg6 {[%emt 0:00:41]} 30. Re2 {[%emt 0:00:01]} Rge6 {[%emt 0:01:14]} 31. Rd7 {[%emt 0:01:09]} R8e7 {[%emt 0:03:28]} 32. Rd5 {[%emt 0:00:26]} e4 {[%emt 0:00:18]} 33. Rxe4 {[%emt 0:00:56]} Rxe4 {[%emt 0:00:05]} 34. fxe4 {[%emt 0:00:01]} Rxe4 {[%emt 0:00:05]} 35. Bxa5 {[%emt 0:01:12]} Rxa4 {[%emt 0:02:06]} 36. Bc7 {[%emt 0:00:26]} h6 {[%emt 0:00:24]} 37. Rb5 {[%emt 0:02:53]} f3 {[%emt 0:00:35]} 38. gxf3 {[%emt 0:00:27]} Rh4 {[%emt 0:00:07]} 39. Rxb7 {[%emt 0:01:11]} Rxh3 {[%emt 0:00:04]} 40. Rb6 {[%emt 0:00:06]} Ne7 {[%emt 0:00:10]} 41. Bd6 {[%emt 0:01:53]} Nf5 {[%emt 0:00:21]} 42. c4 {[%emt 0:02:19]} Kf7 {[%emt 0:11:21]} 43. f4 {[%emt 0:04:14]} h5 {[%emt 0:00:53]} 44. c5 {[%emt 0:02:14]} Rh1+ {[%emt 0:02:03]} 45. Kc2 {[%emt 0:01:51]} h4 {[%emt 0:00:13]} 46. c6 {[%emt 0:01:17]} Nxd6 {[%emt 0:00:31]} 47. c7 {[%emt 0:00:02]} Nc8 {[%emt 0:00:05]} 48. Rb8 {[%emt 0:00:04]} Ne7 {[%emt 0:00:04]} 49. c8=Q {[%emt 0:00:16]} Nxc8 {[%emt 0:00:03]} 50. Rxc8 {[%emt 0:02:58]} Rf1 {[%emt 0:00:06]} 51. b4 {[%emt 0:00:00]} Rxf4 {[%emt 0:00:12]} 52. b5 {[%emt 0:00:00]} g5 {[%emt 0:03:10]} 53. b6 {[%emt 0:00:00]} Rb4 {[%emt 0:00:26]} 54. Rb8 {[%emt 0:00:00]} Kg7 {[%emt 0:00:32]} 55. Kc3 {[%emt 0:00:11]} Rb1 {[%emt 0:00:12]} 56. Kc2 {[%emt 0:00:24]} Rb5 {[%emt 0:00:04]} 57. Rb7+ {[%emt 0:00:15]} Kg6 {[%emt 0:00:22]} 58. Rb8 {[%emt 0:00:15]} h3 {[%emt 0:01:17]} 59. b7 {[%emt 0:00:09]} Kg7 {[%emt 0:00:22]} 0-1

[Event "Charlotte Fall IM-C 2023"]
[Site "Charlotte"]
[Date "2023.11.20"]
[Round "6.2"]
[White "Lima, Darcy"]
[Black "Bhagat Kush"]
[Result "1-0"]
[ECO "E70"]
[WhiteElo "2405"]
[BlackElo "2209"]
[Annotator "RC"]
[PlyCount "135"]
[EventDate "2023.11.17"]
[EventType "tourn"]
[EventCountry "USA"]
[SourceTitle "playchess.com"]
[Source "ChessBase"]
[SourceQuality "1"]
[TimeControl "5400+30"]

1. d4 {[%emt 0:00:05]} Nf6 {[%emt 0:08:05]} 2. c4 {[%emt 0:00:27]} g6 {[%emt 0:00:06]} 3. Nc3 {[%emt 0:00:15]} Bg7 {[%emt 0:00:05]} 4. e4 {[%emt 0:00:16]} d6 {[%emt 0:00:06]} 5. Nge2 {[%emt 0:00:53]} O-O {[%emt 0:00:54]} 6. Ng3 {[%emt 0:00:20]} c5 {[%emt 0:03:19]} 7. d5 {[%emt 0:00:55]} e6 {[%emt 0:00:24]} 8. Be2 {[%emt 0:00:36]} exd5 {[%emt 0:00:59]} 9. exd5 {[%emt 0:00:19]} h5 {[%emt 0:09:24]} 10. Bg5 {[%emt 0:05:05]} Qb6 {[%emt 0:04:38]} 11. Qd2 {[%emt 0:01:50]} Nh7 {[%emt 0:08:02]} 12. Bh6 {[%emt 0:03:48]} Nd7 {[%emt 0:10:56]} 13. Bxg7 {[%emt 0:08:48]} Kxg7 {[%emt 0:00:03]} 14. O-O {[%emt 0:04:25]} h4 {[%emt 0:03:00]} 15. Nh1 {[%emt 0:01:28]} Ndf6 {[%emt 0:01:51]} 16. f4 {[%emt 0:00:16]} Bf5 {[%emt 0:02:14]} 17. Nf2 {[%emt 0:00:25]} Rae8 {[%emt 0:01:14]} 18. Bf3 {[%emt 0:01:11]} Re7 {[%emt 0:02:02]} 19. g4 {[%emt 0:12:37]} hxg3 {[%emt 0:00:29]} 20. hxg3 {[%emt 0:00:02]} Rfe8 {[%emt 0:10:31]} 21. g4 {[%emt 0:01:10]} Re3 {[%emt 0:03:07]} 22. Kg2 {[%emt 0:00:03]} Bd7 {[%emt 0:05:26]} 23. b3 {[%emt 0:07:54]} Qd8 {[%emt 0:02:26]} 24. Ncd1 {[%emt 0:04:26]} R3e7 {[%emt 0:01:22]} 25. Rh1 {[%emt 0:02:19]} Qc8 {[%emt 0:03:31]} 26. Qb2 {[%emt 0:06:57]} Kg8 {[%emt 0:00:22]} 27. Rh4 {[%emt 0:00:05]} Re1 {[%emt 0:03:39]} 28. Nc3 {[%emt 0:03:20]} Rxa1 {[%emt 0:00:14]} 29. Qxa1 {[%emt 0:00:01]} Re3 {[%emt 0:02:11]} 30. Qc1 {[%emt 0:12:33]} Qe8 {[%emt 0:00:27]} 31. g5 {[%emt 0:00:12]} Nh5 {[%emt 0:01:26]} 32. Nce4 {[%emt 0:01:14]} Bh3+ {[%emt 0:01:48]} 33. Nxh3 {[%emt 0:09:12]} Rxe4 {[%emt 0:00:20]} 34. Bxe4 {[%emt 0:00:09]} Qxe4+ {[%emt 0:00:04]} 35. Kf2 {[%emt 0:00:01]} Qd4+ {[%emt 0:00:53]} 36. Qe3 {[%emt 0:00:24]} Qb2+ {[%emt 0:00:12]} 37. Qe2 {[%emt 0:00:54]} Qc3 {[%emt 0:00:36]} 38. Qf3 {[%emt 0:03:26]} Qd2+ {[%emt 0:05:33]} 39. Kf1 {[%emt 0:00:01]} Qxa2 {[%emt 0:04:18]} 40. Nf2 {[%emt 0:01:14]} a6 {[%emt 0:01:07]} 41. Ne4 {[%emt 0:02:14]} Qb1+ {[%emt 0:00:24]} 42. Kg2 {[%emt 0:01:57]} Qc2+ {[%emt 0:00:42]} 43. Kh3 {[%emt 0:00:18]} b5 {[%emt 0:00:35]} 44. Nxd6 {[%emt 0:02:23]} bxc4 {[%emt 0:00:47]} 45. bxc4 {[%emt 0:00:54]} a5 {[%emt 0:00:11]} 46. Qe3 {[%emt 0:01:59]} Nf8 {[%emt 0:00:28]} 47. f5 {[%emt 0:03:23]} Qd1 {[%emt 0:01:07]} 48. Kh2 {[%emt 0:00:21]} Qc2+ {[%emt 0:00:20]} 49. Kg1 {[%emt 0:00:02]} Qd1+ {[%emt 0:00:10]} 50. Kf2 {[%emt 0:00:17]} Qc2+ {[%emt 0:00:01]} 51. Kg1 {[%emt 0:00:30]} Qd1+ {[%emt 0:00:07]} 52. Kg2 {[%emt 0:00:07]} a4 {[%emt 0:00:13]} 53. fxg6 {[%emt 0:00:46]} fxg6 {[%emt 0:00:12]} 54. Qf3 {[%emt 0:01:13]} Qd2+ {[%emt 0:00:07]} 55. Kh3 {[%emt 0:00:05]} Nh7 {[%emt 0:00:13]} 56. Rxh5 {[%emt 0:01:02]} Nxg5+ {[%emt 0:01:46]} 57. Rxg5 {[%emt 0:00:02]} Qxg5 {[%emt 0:00:01]} 58. Ne4 {[%emt 0:01:17]} Qh6+ {[%emt 0:00:40]} 59. Kg2 {[%emt 0:00:18]} Qc1 {[%emt 0:00:18]} 60. Qd3 {[%emt 0:01:07]} Qb2+ {[%emt 0:00:36]} 61. Kf3 {[%emt 0:00:14]} a3 {[%emt 0:01:54]} 62. d6 {[%emt 0:00:03]} a2 {[%emt 0:00:02]} 63. d7 {[%emt 0:00:04]} a1=Q {[%emt 0:01:30]} 64. d8=Q+ {[%emt 0:00:04]} Kh7 {[%emt 0:00:21]} 65. Qh4+ {[%emt 0:01:01]} Kg8 {[%emt 0:00:07]} 66. Qdd8+ {[%emt 0:00:33]} Kg7 {[%emt 0:00:04]} 67. Qhh8+ {[%emt 0:00:29]} Kf7 {[%emt 0:00:04]} 68. Qhg8# {[%emt 0:00:12]} 1-0

[Event "Charlotte Fall IM-C 2023"]
[Site "Charlotte"]
[Date "2023.11.20"]
[Round "6.3"]
[White "Guo, Ethan"]
[Black "Song, Ethan"]
[Result "1/2-1/2"]
[ECO "C50"]
[WhiteElo "2026"]
[BlackElo "2176"]
[Annotator "RC"]
[PlyCount "71"]
[EventDate "2023.11.17"]
[EventType "tourn"]
[EventCountry "USA"]
[SourceTitle "playchess.com"]
[Source "ChessBase"]
[SourceQuality "1"]
[TimeControl "5400+30"]

1. e4 {[%emt 0:00:00]} e5 {[%emt 0:00:41]} 2. Nf3 {[%emt 0:00:06]} Nc6 {[%emt 0:00:10]} 3. Bc4 {[%emt 0:00:06]} Bc5 {[%emt 0:00:09]} 4. d3 {[%emt 0:00:04]} Nf6 {[%emt 0:00:33]} 5. Nc3 {[%emt 0:00:05]} d6 {[%emt 0:00:06]} 6. Na4 {[%emt 0:00:04]} Bb6 {[%emt 0:00:03]} 7. O-O {[%emt 0:00:09]} h6 {[%emt 0:00:30]} 8. c3 {[%emt 0:00:07]} O-O {[%emt 0:00:49]} 9. Nxb6 {[%emt 0:00:05]} axb6 {[%emt 0:00:09]} 10. a4 {[%emt 0:00:04]} Be6 {[%emt 0:01:02]} 11. Bxe6 {[%emt 0:00:26]} fxe6 {[%emt 0:00:07]} 12. b4 {[%emt 0:00:16]} Rf7 {[%emt 0:03:58]} 13. h3 {[%emt 0:01:32]} Qd7 {[%emt 0:06:45]} 14. Be3 {[%emt 0:02:35]} Ne7 {[%emt 0:02:45]} 15. Nd2 {[%emt 0:06:30]} d5 {[%emt 0:04:11]} 16. d4 {[%emt 0:03:19]} exd4 {[%emt 0:06:02]} 17. Bxd4 {[%emt 0:00:06]} Nxe4 {[%emt 0:00:20]} 18. Nxe4 {[%emt 0:00:20]} dxe4 {[%emt 0:00:03]} 19. Qc2 {[%emt 0:01:30]} Nf5 {[%emt 0:04:51]} 20. Rfd1 {[%emt 0:20:47]} Nd6 {[%emt 0:02:35]} 21. Be5 {[%emt 0:01:03]} Qc6 {[%emt 0:01:28]} 22. b5 {[%emt 0:04:42]} Qc5 {[%emt 0:00:45]} 23. Bxd6 {[%emt 0:00:31]} cxd6 {[%emt 0:02:37]} 24. Qxe4 {[%emt 0:00:06]} e5 {[%emt 0:09:22]} 25. Qe3 {[%emt 0:01:44]} Qxe3 {[%emt 0:00:53]} 26. fxe3 {[%emt 0:00:07]} Rf6 {[%emt 0:02:50]} 27. Rd3 {[%emt 0:01:50]} Kf7 {[%emt 0:00:44]} 28. c4 {[%emt 0:00:13]} Ke7 {[%emt 0:00:36]} 29. Ra2 {[%emt 0:00:36]} Rff8 {[%emt 0:00:52]} 30. Rd5 {[%emt 0:04:58]} Ke6 {[%emt 0:05:32]} 31. e4 {[%emt 0:01:00]} g5 {[%emt 0:04:16]} 32. Rad2 {[%emt 0:02:02]} Rfd8 {[%emt 0:00:20]} 33. Ra2 {[%emt 0:00:28]} Rac8 {[%emt 0:01:03]} 34. Rc2 {[%emt 0:00:26]} Rc5 {[%emt 0:04:44]} 35. Rd3 {[%emt 0:00:43]} Rcc8 {[%emt 0:01:00]} 36. Rd5 {[%emt 0:00:22]} 1/2-1/2

[Event "Charlotte Fall IM-C 2023"]
[Site "Charlotte"]
[Date "2023.11.20"]
[Round "6.4"]
[White "Wang, Isaac"]
[Black "Nandhakumar, Vaseegaran"]
[Result "1/2-1/2"]
[ECO "D23"]
[WhiteElo "2377"]
[BlackElo "2177"]
[Annotator "RC"]
[PlyCount "70"]
[EventDate "2023.11.17"]
[EventType "tourn"]
[EventCountry "USA"]
[SourceTitle "playchess.com"]
[Source "ChessBase"]
[SourceQuality "1"]
[TimeControl "5400+30"]

1. d4 {[%emt 0:00:02]} Nf6 {[%emt 0:00:05]} 2. c4 {[%emt 0:00:07]} e6 {[%emt 0:00:04]} 3. Nf3 {[%emt 0:00:09]} d5 {[%emt 0:00:15]} 4. Nc3 {[%emt 0:00:57]} dxc4 {[%emt 0:02:27]} 5. Qa4+ {[%emt 0:02:35]} Nbd7 {[%emt 0:00:43]} 6. e4 {[%emt 0:00:53]} c5 {[%emt 0:02:42]} 7. d5 {[%emt 0:10:35]} exd5 {[%emt 0:02:54]} 8. e5 {[%emt 0:02:29]} d4 {[%emt 0:04:15]} 9. exf6 {[%emt 0:04:05]} dxc3 {[%emt 0:00:22]} 10. Bxc4 {[%emt 0:03:54]} Qxf6 {[%emt 0:04:21]} 11. Bg5 {[%emt 0:09:07]} Qc6 {[%emt 0:01:08]} 12. O-O-O {[%emt 0:26:11]} Be7 {[%emt 1:17:14]} 13. Rhe1 {[%emt 0:07:20]} O-O {[%emt 0:00:00]} 14. Qxc6 {[%emt 0:02:09]} Bxg5+ {[%emt 0:00:00]} 15. Nxg5 {[%emt 0:00:12]} cxb2+ {[%emt 0:00:00]} 16. Kxb2 {[%emt 0:00:28]} bxc6 {[%emt 0:00:00]} 17. Re7 {[%emt 0:04:01]} Nb6 {[%emt 0:00:00]} 18. Bxf7+ {[%emt 0:01:10]} Kh8 {[%emt 0:00:00]} 19. Ka3 {[%emt 0:05:39]} Rb8 {[%emt 0:00:00]} 20. Rc1 {[%emt 0:01:35]} h6 {[%emt 0:00:00]} 21. Ne4 {[%emt 0:01:30]} Rb7 {[%emt 0:00:00]} 22. Rxb7 {[%emt 0:00:48]} Bxb7 {[%emt 0:00:00]} 23. Be6 {[%emt 0:01:04]} Bc8 {[%emt 0:00:00]} 24. Bxc8 {[%emt 0:00:37]} Rxc8 {[%emt 0:00:00]} 25. Rxc5 {[%emt 0:01:23]} Kg8 {[%emt 0:00:00]} 26. Nd6 {[%emt 0:01:41]} Rd8 {[%emt 0:00:00]} 27. Ne4 {[%emt 0:01:05]} Rd3+ {[%emt 0:00:00]} 28. Rc3 {[%emt 0:01:00]} Rd4 {[%emt 0:00:00]} 29. f3 {[%emt 0:00:38]} Nc4+ {[%emt 0:08:30]} 30. Kb3 {[%emt 0:00:46]} Nd2+ {[%emt 0:00:00]} 31. Nxd2 {[%emt 0:00:08]} Rxd2 {[%emt 0:00:00]} 32. Rc2 {[%emt 0:00:15]} Rd6 {[%emt 0:00:00]} 33. Kc4 {[%emt 0:01:00]} Rd5 {[%emt 0:00:00]} 34. Kb4 {[%emt 0:02:25]} Rb5+ {[%emt 0:00:00]} 35. Kc4 {[%emt 0:00:06]} Rd5 {[%emt 0:00:00]} 1/2-1/2

[Event "Charlotte Fall IM-C 2023"]
[Site "Charlotte"]
[Date "2023.11.20"]
[Round "6.5"]
[White "Fierro Baquero, Martha L."]
[Black "Graif, William"]
[Result "1/2-1/2"]
[ECO "A07"]
[WhiteElo "2306"]
[BlackElo "2289"]
[Annotator "RC"]
[PlyCount "117"]
[EventDate "2023.11.17"]
[EventType "tourn"]
[EventCountry "USA"]
[SourceTitle "playchess.com"]
[Source "ChessBase"]
[SourceQuality "1"]
[TimeControl "5400+30"]

1. Nf3 {[%emt 0:12:20]} d5 {[%emt 0:00:46]} 2. g3 {[%emt 0:00:06]} c6 {[%emt 0:00:44]} 3. Bg2 {[%emt 0:00:06]} Bg4 {[%emt 0:00:13]} 4. h3 {[%emt 0:00:44]} Bxf3 {[%emt 0:05:21]} 5. Bxf3 {[%emt 0:00:04]} e5 {[%emt 0:02:12]} 6. d3 {[%emt 0:00:04]} Nf6 {[%emt 0:05:11]} 7. O-O {[%emt 0:00:12]} Nbd7 {[%emt 0:05:54]} 8. c4 {[%emt 0:00:35]} dxc4 {[%emt 0:12:19]} 9. dxc4 {[%emt 0:00:07]} e4 {[%emt 0:01:00]} 10. Bg2 {[%emt 0:00:07]} Bc5 {[%emt 0:00:40]} 11. Nc3 {[%emt 0:13:55]} e3 {[%emt 0:09:47]} 12. f4 {[%emt 0:04:51]} Nb6 {[%emt 0:01:30]} 13. Qc2 {[%emt 0:02:27]} h5 {[%emt 0:10:43]} 14. Ne4 {[%emt 0:09:20]} Nxe4 {[%emt 0:00:58]} 15. Qxe4+ {[%emt 0:00:09]} Qe7 {[%emt 0:00:39]} 16. b3 {[%emt 0:01:58]} Qxe4 {[%emt 0:09:20]} 17. Bxe4 {[%emt 0:00:06]} O-O-O {[%emt 0:01:47]} 18. Kg2 {[%emt 0:01:44]} Bd4 {[%emt 0:17:20]} 19. Rb1 {[%emt 0:00:07]} Nd7 {[%emt 0:01:13]} 20. Bf5 {[%emt 0:10:04]} Kc7 {[%emt 0:00:56]} 21. Bxd7 {[%emt 0:00:06]} Rxd7 {[%emt 0:00:04]} 22. Rd1 {[%emt 0:00:19]} f5 {[%emt 0:09:54]} 23. h4 {[%emt 0:05:51]} c5 {[%emt 0:02:14]} 24. Kf3 {[%emt 0:00:15]} Re8 {[%emt 0:00:25]} 25. Rd3 {[%emt 0:11:23]} Rde7 {[%emt 0:00:11]} 26. b4 {[%emt 0:03:57]} Re4 {[%emt 0:00:29]} 27. b5 {[%emt 0:00:05]} b6 {[%emt 0:01:07]} 28. Rbb3 {[%emt 0:00:05]} R8e7 {[%emt 0:00:44]} 29. Ra3 {[%emt 0:07:13]} Kb7 {[%emt 0:00:13]} 30. Bxe3 {[%emt 0:01:27]} Bb2 {[%emt 0:00:22]} 31. Ra4 {[%emt 0:02:58]} g6 {[%emt 0:00:25]} 32. Rb3 {[%emt 0:03:00]} Bf6 {[%emt 0:00:15]} 33. Rba3 {[%emt 0:01:47]} Kb8 {[%emt 0:00:06]} 34. Bc1 {[%emt 0:03:46]} Rd7 {[%emt 0:01:47]} 35. Rd3 {[%emt 0:01:20]} Rxd3+ {[%emt 0:00:36]} 36. exd3 {[%emt 0:00:05]} Re1 {[%emt 0:00:04]} 37. Bd2 {[%emt 0:01:19]} Rf1+ {[%emt 0:00:35]} 38. Ke2 {[%emt 0:00:32]} Rg1 {[%emt 0:00:10]} 39. Be1 {[%emt 0:01:57]} Bb2 {[%emt 0:00:44]} 40. Ra6 {[%emt 0:02:07]} Rg2+ {[%emt 0:00:25]} 41. Kf3 {[%emt 0:00:24]} Rg1 {[%emt 0:00:44]} 42. Ke2 {[%emt 0:00:20]} Rg2+ {[%emt 0:00:35]} 43. Kf1 {[%emt 0:00:39]} Rc2 {[%emt 0:00:21]} 44. a4 {[%emt 0:00:27]} Rc1 {[%emt 0:00:40]} 45. Ke2 {[%emt 0:00:06]} Rc2+ {[%emt 0:00:21]} 46. Kf3 {[%emt 0:00:34]} Bc3 {[%emt 0:00:49]} 47. Bxc3 {[%emt 0:01:10]} Rxc3 {[%emt 0:00:01]} 48. Ke3 {[%emt 0:00:07]} Ra3 {[%emt 0:00:39]} 49. a5 {[%emt 0:01:34]} Kb7 {[%emt 0:00:28]} 50. axb6 {[%emt 0:00:05]} Rxa6 {[%emt 0:00:10]} 51. bxa6+ {[%emt 0:00:09]} Kxb6 {[%emt 0:00:03]} 52. d4 {[%emt 0:00:04]} cxd4+ {[%emt 0:00:17]} 53. Kxd4 {[%emt 0:00:04]} Kxa6 {[%emt 0:00:06]} 54. Kd5 {[%emt 0:01:10]} Kb7 {[%emt 0:00:10]} 55. Kd6 {[%emt 0:00:35]} a5 {[%emt 0:01:35]} 56. Kd7 {[%emt 0:00:03]} Kb6 {[%emt 0:00:29]} 57. Kd6 {[%emt 0:00:04]} Kb7 {[%emt 0:00:27]} 58. Kd7 {[%emt 0:01:43]} Kb6 {[%emt 0:00:18]} 59. Kd6 {[%emt 0:00:05]} 1/2-1/2

[Event "Charlotte Fall IM-C 2023"]
[Site "Charlotte"]
[Date "2023.11.20"]
[Round "7.1"]
[White "Graif, William"]
[Black "Vemparala, Nikash"]
[Result "1-0"]
[ECO "C67"]
[WhiteElo "2289"]
[BlackElo "2257"]
[Annotator "RC"]
[PlyCount "115"]
[EventDate "2023.11.17"]
[EventType "tourn"]
[EventCountry "USA"]
[SourceTitle "playchess.com"]
[Source "ChessBase"]
[SourceQuality "1"]
[TimeControl "5400+30"]

1. e4 {[%emt 0:03:04]} e5 {[%emt 0:01:03]} 2. Nf3 {[%emt 0:00:08]} Nc6 {[%emt 0:00:15]} 3. Bb5 {[%emt 0:00:57]} Nf6 {[%emt 0:00:48]} 4. O-O {[%emt 0:01:11]} Nxe4 {[%emt 0:00:06]} 5. Re1 {[%emt 0:00:27]} Nd6 {[%emt 0:00:10]} 6. Nxe5 {[%emt 0:00:08]} Be7 {[%emt 0:00:07]} 7. Bf1 {[%emt 0:00:12]} Nxe5 {[%emt 0:00:07]} 8. Rxe5 {[%emt 0:00:05]} O-O {[%emt 0:00:14]} 9. d4 {[%emt 0:00:07]} Bf6 {[%emt 0:00:21]} 10. Bd3 {[%emt 0:00:09]} Ne8 {[%emt 0:17:07]} 11. Nc3 {[%emt 0:00:13]} d6 {[%emt 0:17:10]} 12. Re1 {[%emt 0:00:24]} c6 {[%emt 0:05:03]} 13. d5 {[%emt 0:00:10]} Nc7 {[%emt 0:01:52]} 14. dxc6 {[%emt 0:00:10]} bxc6 {[%emt 0:00:18]} 15. Ne4 {[%emt 0:00:06]} d5 {[%emt 0:03:52]} 16. Nxf6+ {[%emt 0:03:58]} Qxf6 {[%emt 0:00:16]} 17. Qh5 {[%emt 0:00:26]} h6 {[%emt 0:02:25]} 18. Qe5 {[%emt 0:15:53]} Qxe5 {[%emt 0:05:49]} 19. Rxe5 {[%emt 0:00:03]} Ba6 {[%emt 0:01:13]} 20. Be3 {[%emt 0:20:53]} Bxd3 {[%emt 0:11:58]} 21. cxd3 {[%emt 0:00:03]} d4 {[%emt 0:00:47]} 22. Bd2 {[%emt 0:10:21]} Rfe8 {[%emt 0:02:34]} 23. Rxe8+ {[%emt 0:01:43]} Rxe8 {[%emt 0:00:50]} 24. Kf1 {[%emt 0:00:34]} Ne6 {[%emt 0:03:14]} 25. Rc1 {[%emt 0:08:30]} c5 {[%emt 0:00:01]} 26. g4 {[%emt 0:00:33]} Rb8 {[%emt 0:05:28]} 27. b3 {[%emt 0:00:10]} Rb5 {[%emt 0:06:03]} 28. Kg2 {[%emt 0:04:08]} a5 {[%emt 0:03:22]} 29. Rc4 {[%emt 0:01:56]} Nd8 {[%emt 0:00:29]} 30. Kf3 {[%emt 0:01:36]} Nb7 {[%emt 0:02:07]} 31. Ra4 {[%emt 0:05:54]} Kf8 {[%emt 0:02:19]} 32. Ke4 {[%emt 0:06:10]} Ke7 {[%emt 0:00:02]} 33. Kd5 {[%emt 0:00:34]} Kd7 {[%emt 0:00:02]} 34. f4 {[%emt 0:00:55]} g6 {[%emt 0:02:28]} 35. f5 {[%emt 0:16:09]} gxf5 {[%emt 0:00:01]} 36. gxf5 {[%emt 0:00:00]} h5 {[%emt 0:00:05]} 37. h3 {[%emt 0:00:00]} f6 {[%emt 0:04:50]} 38. Rc4 {[%emt 0:00:00]} Rb6 {[%emt 0:01:24]} 39. Bf4 {[%emt 0:00:00]} Rc6 {[%emt 0:00:43]} 40. Rc1 {[%emt 0:00:00]} Nd6 {[%emt 0:02:32]} 41. Rxc5 {[%emt 0:00:00]} Rxc5+ {[%emt 0:00:01]} 42. Kxc5 {[%emt 0:00:00]} Nxf5 {[%emt 0:00:02]} 43. a4 {[%emt 0:00:00]} h4 {[%emt 0:00:36]} 44. Bd2 {[%emt 0:00:05]} Ke6 {[%emt 0:01:27]} 45. Bxa5 {[%emt 0:00:16]} Ne3 {[%emt 0:00:43]} 46. Be1 {[%emt 0:03:11]} Ng2 {[%emt 0:00:23]} 47. a5 {[%emt 0:01:12]} Nxe1 {[%emt 0:00:35]} 48. a6 {[%emt 0:00:13]} Nxd3+ {[%emt 0:00:02]} 49. Kb5 {[%emt 0:00:55]} Nf4 {[%emt 0:00:36]} 50. a7 {[%emt 0:00:17]} Nd5 {[%emt 0:00:01]} 51. Kc6 {[%emt 0:00:16]} Nb4+ {[%emt 0:01:18]} 52. Kb7 {[%emt 0:00:30]} d3 {[%emt 0:00:16]} 53. a8=Q {[%emt 0:00:12]} d2 {[%emt 0:00:09]} 54. Qe8+ {[%emt 0:00:11]} Kd5 {[%emt 0:00:41]} 55. Qd8+ {[%emt 0:00:07]} Ke4 {[%emt 0:00:03]} 56. Qxd2 {[%emt 0:00:13]} Nd3 {[%emt 0:00:04]} 57. Qe2+ {[%emt 0:00:56]} Kd4 {[%emt 0:00:03]} 58. Qg4+ {[%emt 0:00:13]} 1-0